Workbook

Sheet Март
A1: Табель Март 2014
A2: ФИО | B2: 1 | C2: 2 | D2: 3 | E2: 4 | F2: 5 | G2: 6 | H2: 7 | I2: 8 | J2: 9 | K2: 10 | L2: 11 | M2: 12 | N2: 13 | O2: 14 | P2: 15 | Q2: 16 | R2: 17 | S2: 18 | T2: 19 | U2: 20 | V2: 21 | W2: 22 | X2: 23 | Y2: 24 | Z2: 25 | AA2: 26 | AB2: 27 | AC2: 28 | AD2: 29 | AE2: 30 | AF2: 31
B3: Сб | C3: Вс | D3: Пн | E3: Вт | F3: Ср | G3: Чт | H3: Пт | I3: Сб | J3: Вс | K3: Пн | L3: Вт | M3: Ср | N3: Чт | O3: Пт | P3: Сб | Q3: Вс | R3: Пн | S3: Вт | T3: Ср | U3: Чт | V3: Пт | W3: Сб | X3: Вс | Y3: Пн | Z3: Вт | AA3: Ср | AB3: Чт | AC3: Пт | AD3: Сб | AE3: Вс | AF3: Пн
A4: Администраторы
A5: Глебова Марина | D5: 9 | E5: 8 | F5: 8 | G5: 8 | H5: 11 | L5: 8 | M5: 11 | N5: 8 | O5: 8 | R5: 8 | S5: 8 | T5: 9 | U5: 8 | V5: 9 | Y5: 9 | Z5: 8 | AA5: 9 | AB5: 9 | AC5: 9 | AG5: =SUM(B5:AF5) -> 165
A7: Денисов Вадим | B7: 15 | D7: 12 | H7: 14 | I7: 12 | J7: 12 | P7: 12 | V7: 12 | AC7: 12 | AD7: 13 | AG7: =SUM(B7:AF7) -> 114
B8: 7 | D8: 7 | H8: 7 | I8: 7 | J8: 7 | P8: 7 | V8: 7 | AC8: 7 | AD8: 7 | AG8: =SUM(B8:AF8) -> 63
A9: Цепилов Василий | B9: 14 | G9: 12 | H9: 13 | I9: 14 | L9: 12 | N9: 16 | O9: 12 | P9: 12 | T9: 16 | U9: 14 | V9: 12 | W9: 12 | Y9: 12 | Z9: 12 | AA9: 12 | AB9: 12 | AC9: 12 | AD9: 12 | AG9: =SUM(B9:AF9) -> 231
B10: 7 | G10: 7 | H10: 7 | I10: 7 | L10: 7 | N10: 7 | O10: 7 | P10: 7 | T10: 7 | U10: 7 | V10: 7 | W10: 7 | Y10: 7 | Z10: 7 | AA10: 7 | AB10: 7 | AC10: 7 | AD10: 7 | AG10: =SUM(B10:AF10) -> 126
A11: Бармены
A12: Беленкин Сергей | B12: 14 | F12: 13 | H12: 12 | I12: 13 | K12: 12 | N12: 12 | O12: 12 | T12: 12 | AA12: 12 | AB12: 12 | AC12: 12 | AG12: =SUM(B12:AF12) -> 136
B13: 7 | F13: 7 | H13: 7 | I13: 7 | K13: 7 | N13: 7 | O13: 7 | T13: 7 | AA13: 7 | AB13: 7 | AC13: 7 | AG13: 77
A14: Максимов Дмитрий | B14: 12 | E14: 12 | G14: 12 | I14: 13 | J14: 12 | L14: 12 | M14: 12 | N14: 3 | P14: 12 | R14: 12 | S14: 12 | U14: 10 | V14: 11 | W14: 12 | Y14: 12 | Z14: 12 | AD14: 12 | AG14: 193
B15: 7 | E15: 7 | G15: 7 | I15: 7 | J15: 7 | L15: 7 | M15: 7 | P15: 7 | R15: 7 | S15: 7 | V15: 7 | W15: 7 | Y15: 7 | Z15: 7 | AD15: 7 | AG15: 105
A16: Плешанов Дмитрий | D16: 12 | H16: 12 | P16: 12 | U16: 12 | V16: 12 | W16: 12 | AC16: 12 | AD16: 12 | AG16: 96
D17: 7 | H17: 7 | P17: 7 | U17: 7 | V17: 7 | W17: 7 | AC17: 7 | AD17: 7 | AG17: 56
A18: Официанты 5/2
A19: Петрякова Оксана | D19: 8 | E19: 8 | F19: 8 | G19: 12 | H19: 8 | L19: 8 | N19: 8 | R19: 8 | S19: 8 | T19: 10 | U19: 10 | V19: 8 | Y19: 8 | Z19: 8 | AA19: 10 | AB19: 9 | AC19: 9 | AG19: =SUM(B19:AF19) -> 148
A20: Лузенинова Александра | D20: 8 | E20: 8 | F20: 8 | G20: 7 | H20: 8 | L20: 8 | M20: 9 | O20: 8 | R20: 7 | S20: 6 | T20: 9 | AG20: 86
A21: Агаева Лилия | D21: 8 | E21: 8 | F21: 8 | G21: 8 | H21: 8 | L21: 8 | M21: 10 | N21: 8 | O21: 8 | R21: 8 | S21: 8 | T21: 8 | U21: 9 | Y21: 8 | Z21: 7 | AB21: 7 | AC21: 8 | AG21: 137
A22: Носкова Кристина | E22: 8 | F22: 8 | H22: 8 | L22: 8 | M22: 9 | N22: 9 | O22: 8 | S22: 8 | T22: 9 | U22: 6 | V22: 8 | Y22: 6 | Z22: 8 | AA22: 10 | AB22: 5 | AC22: 8 | AG22: 126
A23: Сотченко Алексей | V23: 8 | AA23: 8 | AB23: 8 | AG23: 24
A24: Максимов Дмитрий | U24: 5 | AG24: 5
A25: Официанты 2/2
A26: Кудрина Аня | B26: 12 | F26: 12 | G26: 12 | M26: 11 | O26: 12 | P26: 12 | R26: 12 | U26: 13 | V26: 12 | W26: 12 | AA26: 11 | AC26: 12 | AG26: =SUM(B26:AF26) -> 143
B27: 7 | F27: 7 | G27: 7 | M27: 7 | O27: 7 | P27: 7 | R27: 7 | U27: 7 | V27: 7 | W27: 7 | AA27: 7 | AC27: 7 | AG27: 84
A28: Ветошкина Даша | B28: 14 | F28: 11 | H28: 13 | I28: 13 | J28: 12 | O28: 12 | T28: 12 | W28: 12 | AA28: 12 | AD28: 12 | AG28: 123
B29: 7 | F29: 7 | H29: 7 | I29: 7 | J29: 7 | O29: 7 | T29: 7 | W29: 7 | AA29: 7 | AD29: 7 | AG29: 70
A30: Голубинов Дмитрий | B30: 12 | D30: 12 | H30: 13 | I30: 13 | J30: 12 | K30: 12 | L30: 12 | S30: 12 | Y30: 12 | Z30: 12 | AG30: 122
B31: 7 | D31: 7 | H31: 7 | I31: 7 | J31: 7 | K31: 7 | L31: 7 | S31: 7 | Y31: 7 | Z31: 7 | AG31: 70
A32: Неволин Илья | D32: 12 | E32: 12 | H32: 10 | I32: 13 | M32: 11 | N32: 12 | R32: 12 | V32: 11 | W32: 12 | AB32: 10 | AG32: 115
D33: 7 | E33: 7 | H33: 7 | I33: 7 | M33: 7 | N33: 7 | R33: 7 | V33: 7 | W33: 7 | AB33: 7 | AG33: 70
A34: Савинов Александр | H34: 15 | I34: 13 | L34: 12 | O34: 12 | P34: 12 | S34: 12 | V34: 11 | W34: 12 | Z34: 14 | AC34: 12 | AD34: 12 | AG34: 137
H35: 7 | I35: 7 | L35: 7 | O35: 7 | P35: 7 | S35: 7 | V35: 7 | W35: 7 | Z35: 7 | AC35: 7 | AD35: 7 | AG35: 77
A36: Балыбердин Александр | B36: 14 | G36: 11 | H36: 12 | I36: 13 | M36: 12 | N36: 12 | P36: 12 | U36: 12 | V36: 12 | AB36: 12 | AC36: 12 | AD36: 12 | AG36: 146
B37: 7 | G37: 7 | H37: 7 | I37: 7 | M37: 7 | N37: 7 | P37: 7 | U37: 7 | V37: 7 | AB37: 7 | AC37: 7 | AD37: 7 | AG37: 84
A38: Сотченко Алексей | E38: 12 | H38: 17 | I38: 13 | K38: 12 | O38: 12 | T38: 11 | Y38: 12 | AC38: 12 | AD38: 3 | AG38: 104
E39: 7 | H39: 7 | I39: 7 | K39: 7 | O39: 7 | T39: 7 | Y39: 7 | AC39: 7 | AD39: 7 | AG39: 63
A40: Петрякова Оксана | P40: 12 | AD40: 13 | AG40: 25
P41: 7 | AD41: 7 | AG41: 14
A42: Звукорежисеры
A43: Тихонов Сергей | B43: 13 | G43: 13 | H43: 12 | I43: 12 | J43: 12 | L43: 12 | M43: 12 | N43: 15 | O43: 12 | P43: 12 | S43: 12 | T43: 17 | U43: 15 | V43: 12 | W43: 12 | AA43: 16 | AB43: 15 | AC43: 12 | AD43: 12 | AG43: =SUM(B43:AF43) -> 248
B44: 7 | G44: 7 | H44: 7 | I44: 7 | J44: 7 | L44: 7 | M44: 7 | N44: 7 | O44: 7 | P44: 7 | S44: 7 | T44: 7 | U44: 7 | V44: 7 | W44: 7 | AA44: 7 | AB44: 7 | AC44: 7 | AD44: 7 | AG44: 133
A45: Цепилов Василий | F45: 16 | R45: 12 | AG45: 28
F46: 7 | R46: 7 | AG46: 14
A47: Мальхамов Владимир | B47: 12 | D47: 12 | E47: 12 | H47: 12 | I47: 12 | K47: 12 | O47: 12 | P47: 12 | V47: 12 | W47: 12 | Y47: 12 | Z47: 12 | AC47: 12 | AD47: 12 | AG47: 168
B48: 7 | D48: 7 | E48: 7 | H48: 7 | I48: 7 | K48: 7 | O48: 7 | P48: 7 | V48: 7 | W48: 7 | Y48: 7 | Z48: 7 | AC48: 7 | AD48: 7 | AG48: 98
A49: Уборщицы
A50: Николаева Людмила | D50: 17 | G50: 17 | J50: 12 | M50: 19 | P50: 12 | S50: 17 | V50: 17 | Y50: 17 | AB50: 17 | AG50: =SUM(B50:AF50) -> 145
D51: 7 | G51: 7 | J51: 7 | M51: 7 | P51: 7 | S51: 7 | V51: 7 | Y51: 7 | AB51: 7 | AG51: 63
A52: Солдатова Наталья | B52: 13 | E52: 17 | H52: 17 | K52: 12 | N52: 17 | T52: 17 | W52: 12 | Z52: 17 | AC52: 17 | AF52: 17 | AG52: 156
B53: 7 | E53: 7 | H53: 7 | K53: 7 | N53: 7 | T53: 7 | W53: 7 | Z53: 7 | AC53: 7 | AF53: 7 | AG53: 70
A54: Круглова Елена | F54: 17 | I54: 12 | L54: 17 | O54: 17 | R54: 19 | U54: 17 | AA54: 17 | AD54: 12 | AG54: 128
F55: 7 | I55: 7 | L55: 7 | O55: 7 | R55: 7 | U55: 7 | AA55: 7 | AD55: 7 | AG55: 56
A56: Стажеры | AG56: 0
AG57: 0
AG58: 0
AG59: 0
AG60: 0
A61: Гардероб | AG61: 0
A62: Перминов Владимир | AG62: 0
A63: Карасева Елена | AG63: 0
A64: Кашаева Елена | AG64: 0
A65: Хостес | AG65: 0
A66: Юрьева Анастасия | AG66: 0
A67: Мойщицы
A68: Клининг | B68: 12 | D68: 17 | E68: 17 | F68: 17 | G68: 17 | H68: 17 | I68: 12 | J68: 12 | K68: 12 | L68: 17 | M68: 17 | N68: 9 | O68: 17 | P68: 12 | R68: 17 | S68: 17 | T68: 17 | U68: 17 | V68: 17 | W68: 12 | Y68: 17 | Z68: 17 | AA68: 17 | AB68: 17 | AC68: 17 | AD68: 12 | AF68: 17 | AG68: =SUM(B68:AF68) -> 416
B69: 7 | D69: 7 | E69: 7 | F69: 7 | G69: 7 | H69: 7 | I69: 7 | J69: 7 | K69: 7 | L69: 7 | M69: 7 | N69: 7 | O69: 7 | P69: 7 | R69: 7 | S69: 7 | T69: 7 | U69: 7 | V69: 7 | W69: 7 | Y69: 7 | Z69: 7 | AA69: 7 | AB69: 7 | AC69: 7 | AD69: 7 | AF69: 7 | AG69: =SUM(B69:AF69) -> 189
A70: Гардероб
A71: Перминов Владимир | B71: 12 | E71: 17 | H71: 17 | K71: 12 | N71: 17 | T71: 17 | W71: 12 | Z71: 17 | AC71: 17 | AF71: 17 | AG71: =SUM(B71:AF71) -> 155
B72: 7 | E72: 7 | H72: 7 | K72: 7 | N72: 7 | T72: 7 | W72: 7 | Z72: 7 | AC72: 7 | AF72: 7 | AG72: 70
A73: Родина Мария | D73: 17 | G73: 17 | J73: 12 | M73: 17 | P73: 12 | S73: 17 | V73: 17 | Y73: 17 | AB73: 17 | AG73: 143
D74: 7 | G74: 7 | J74: 7 | M74: 7 | P74: 7 | S74: 7 | V74: 7 | Y74: 7 | AB74: 7 | AG74: 63
A75: Круглова Татьяна | F75: 17 | I75: 12 | L75: 17 | O75: 17 | R75: 19 | U75: 17 | AA75: 17 | AD75: 12 | AG75: 128
F76: 7 | I76: 7 | L76: 7 | O76: 7 | R76: 7 | U76: 7 | AA76: 7 | AD76: 7 | AG76: 56

Sheet Апрель
A1: 2014-04-11 | C1: 2014-04-12 | E1: 2014-04-13 | G1: 2014-04-14 | I1: 2014-04-15 | K1: Итого | L1: 22:00:00
A2: Пятница | C2: Суббота | E2: Воскресенье | G2: Понедельник | I2: Вторник | L2: 00:00:00
A3: 00:00:00 | B3: =IF((A3<>"")*(A4<>""),MOD(A4-A3,1),0) -> 0.2083333333 | C3: 17:00:00 | D3: =IF((C3<>"")*(C4<>""),MOD(C4-C3,1),0) -> 0.5 | E3: 17:00:00 | F3: =IF((E3<>"")*(E4<>""),MOD(E4-E3,1),0) -> 0.25 | G3: 17:42:00 | H3: =IF((G3<>"")*(G4<>""),MOD(G4-G3,1),0) -> 0.4708333333 | I3: 17:00:00 | J3: =IF((I3<>"")*(I4<>""),MOD(I4-I3,1),0) -> 0.5 | K3: =SUMIF($A$2:$J$2,"=",A3:J3) -> 1.929166667
A4: 05:00:00 | C4: 05:00:00 | E4: 23:00:00 | G4: 05:00:00 | I4: 05:00:00
B5: =IF((A3<>"")*(A4<>""),MOD(A4-A3,1)-MIN(MAX(MIN(MAX(--"6:00",A3+MOD(A4-A3,1)),--"22:00")-MAX(MIN(--"22:00",A3),--"6:00")+MIN(MAX(1+"6:00",A3+MOD(A4-A3,1)),1+"22:00")-MAX(MIN(1+"22:00",A3),1+"6:00"),0),MOD(A4-A3,1)),0) -> 05:00:00 | D5: =IF((C3<>"")*(C4<>""),MOD(C4-C3,1)-MIN(MAX(MIN(MAX(--"6:00",C3+MOD(C4-C3,1)),--"22:00")-MAX(MIN(--"22:00",C3),--"6:00")+MIN(MAX(1+"6:00",C3+MOD(C4-C3,1)),1+"22:00")-MAX(MIN(1+"22:00",C3),1+"6:00"),0),MOD(C4-C3,1)),0) -> 07:00:00 | F5: =IF((E3<>"")*(E4<>""),MOD(E4-E3,1)-MIN(MAX(MIN(MAX(--"6:00",E3+MOD(E4-E3,1)),--"22:00")-MAX(MIN(--"22:00",E3),--"6:00")+MIN(MAX(1+"6:00",E3+MOD(E4-E3,1)),1+"22:00")-MAX(MIN(1+"22:00",E3),1+"6:00"),0),MOD(E4-E3,1)),0) -> 01:00:00 | H5: =IF((G3<>"")*(G4<>""),MOD(G4-G3,1)-MIN(MAX(MIN(MAX(--"6:00",G3+MOD(G4-G3,1)),--"22:00")-MAX(MIN(--"22:00",G3),--"6:00")+MIN(MAX(1+"6:00",G3+MOD(G4-G3,1)),1+"22:00")-MAX(MIN(1+"22:00",G3),1+"6:00"),0),MOD(G4-G3,1)),0) -> 07:00:00 | J5: =IF((I3<>"")*(I4<>""),MOD(I4-I3,1)-MIN(MAX(MIN(MAX(--"6:00",I3+MOD(I4-I3,1)),--"22:00")-MAX(MIN(--"22:00",I3),--"6:00")+MIN(MAX(1+"6:00",I3+MOD(I4-I3,1)),1+"22:00")-MAX(MIN(1+"22:00",I3),1+"6:00"),0),MOD(I4-I3,1)),0) -> 07:00:00 | K5: =SUMIF($A$2:$J$2,"=",A5:J5) -> 1.125
